fUSD/lending_fUSD_20241026
["ID","MTS","AMOUNT","RATE_DAILY","PERIOD"]
[340848793,1729923039918,-151.0,0.00052599,120]
[340848794,1729923039929,-151.0,0.00052599,120]
[340848795,1729923039938,-151.0,0.00052599,120]
[340848796,1729923039947,-151.0,0.00052599,120]
[340848797,1729923039957,-151.832268,0.00052599,120]
[340848798,1729923039967,-151.0,0.00052599,120]
[340848799,1729923039976,-151.0,0.00052599,120]
[340848800,1729923039985,-151.871165,0.00052599,120]
[340848801,1729923039994,-151.0,0.00052599,120]
[340848802,1729923040003,-151.0,0.00052599,120]
[340848803,1729923040012,-30833.66911972,0.00052599,60]
[340848804,1729923040021,-206749.95111712,0.00052599,64]
[340848805,1729923040031,-55000.0,0.000526,120]
[340848806,1729923040040,-154.147476,0.000526,120]
[340848807,1729923040050,-152.745346,0.000526,60]
[340848808,1729923040059,-154.283246,0.000526,120]
[340848809,1729923040069,-151.0,0.000526,120]
[340848810,1729923040078,-151.0,0.000526,120]
[340848811,1729923040087,-151.0,0.000526,120]
[340848812,1729923040096,-151.0,0.000526,120]
[340848813,1729923040106,-151.0,0.000526,120]
[340848814,1729923040116,-151.0,0.000526,120]
[340848815,1729923040125,-154.219995,0.000526,120]
[340848816,1729923040135,-154.471123,0.000526,120]
[340848817,1729923040144,-155.495415,0.000526,120]
[340848818,1729923040154,-151.0,0.000526,120]
[340848819,1729923040163,-152.891661,0.000526,120]
[340848820,1729923040172,-151.0,0.000526,7]
[340848821,1729923040182,-151.0,0.000526,7]
[340848822,1729923040191,-151.0,0.000526,120]
[340848823,1729923040200,-151.0,0.000526,120]
[340848824,1729923040212,-151.0,0.000526,120]
[340848825,1729923040223,-151.0,0.000526,120]
[340848826,1729923040233,-151.0,0.000526,120]
[340848827,1729923040242,-151.0,0.000526,120]
[340848828,1729923040252,-236.611658,0.000526,120]
[340848829,1729923040262,-236.611658,0.000526,120]
[340848830,1729923040271,-151.0,0.000526,110]
[340848831,1729923040281,-151.0,0.000526,120]
[340848832,1729923040291,-151.0,0.000526,120]
[340848833,1729923040300,-151.0,0.000526,120]
[340848834,1729923040311,-151.0,0.000526,120]
[340848835,1729923040321,-151.0,0.000526,120]
[340848836,1729923040330,-151.0,0.000526,120]
[340848837,1729923040340,-151.0,0.000526,120]
[340848838,1729923040349,-152.140748,0.000526,120]
[340848839,1729923040359,-151.0,0.000526,120]
[340848840,1729923040369,-152.875212,0.000526,120]
[340848841,1729923040378,-151.0,0.000526,120]
[340848842,1729923040388,-154.029124,0.000526,120]
[340848843,1729923040398,-151.0,0.000526,120]
[340848844,1729923040407,-151.0,0.000526,120]
[340848845,1729923040417,-151.0,0.000526,120]
[340848846,1729923040427,-151.0,0.000526,120]
[340848847,1729923040436,-151.329272,0.000526,120]
[340848848,1729923040445,-319.215297,0.000526,120]
[340848849,1729923040454,-319.215297,0.000526,120]
[340848850,1729923040463,-151.0,0.000526,120]
[340848851,1729923040473,-151.0,0.000526,120]
[340848852,1729923040483,-151.0,0.000526,7]
[340848853,1729923040493,-229.11392,0.000526,120]
[340848854,1729923040504,-229.11392,0.000526,120]
[340848855,1729923040515,-153.009856,0.000526,120]
[340848857,1729923040524,-436.802354,0.000526,120]
[340848858,1729923040534,-436.802354,0.000526,120]
[340848859,1729923040545,-531.518783,0.000526,120]
[340848860,1729923040554,-531.518783,0.000526,120]
[340848861,1729923040564,-151.0,0.00052721,120]
[340848862,1729923040575,-151.0,0.00052721,120]
[340848863,1729923040584,-151.0,0.00052721,120]
[340848864,1729923040594,-151.0,0.00052721,120]
[340848865,1729923040603,-151.0,0.00052721,120]
[340848866,1729923040614,-151.0,0.00052721,120]
[340848867,1729923040623,-151.0,0.00052721,120]
[340848868,1729923040632,-152.742443,0.00052721,120]
[340848869,1729923040641,-151.0,0.00052721,120]
[340848870,1729923040650,-151.0,0.00052721,120]
[340848871,1729923040659,-151.0,0.00052721,120]
[340848872,1729923040669,-1247.0,0.00052721,120]
[340848873,1729923040678,-450.0,0.00052721,120]
[340848874,1729923040687,-813.0,0.00052721,120]
[340848875,1729923040696,-561.0,0.00052721,120]
[340848876,1729923040706,-556.0,0.00052721,120]
[340848877,1729923040715,-161.66614119,0.00052785,30]
[340848878,1729923040724,-1199.62,0.000528,60]
[340848879,1729923040733,-200.0,0.00052834,120]
[340848880,1729923040742,-155.0,0.00053178,120]
[340848881,1729923040752,-6466.3019543,0.00053211,2]
[340848882,1729923040761,-215.55158588,0.00053211,2]
[340848883,1729923040770,-543.44535478,0.00053211,2]
[340848884,1729923040779,-194.72150954,0.00053211,2]
[340848885,1729923040788,-884.94,0.00053216,2]
[340848886,1729923040802,-1926.26,0.000533,30]
[340848887,1729923040811,-151.0,0.00053301,120]
[340848888,1729923040820,-161.838733,0.00053301,120]
[340848889,1729923040829,-153.477865,0.00053301,120]
[340848890,1729923040839,-442.77485455,0.0005331,2]
[340848891,1729923040848,-162.90652343,0.0005331,120]
[340848892,1729923040858,-163.29774,0.0005331,120]
[340848893,1729923040870,-151.0,0.0005331,120]
[340848894,1729923040880,-153.869547,0.0005331,120]
[340848895,1729923040890,-227822.76520689,0.00053311,5]
[340848896,1729923040899,-151.0,0.00053311,120]
[340848897,1729923040909,-151.0,0.00053311,120]
[340848898,1729923040918,-151.0,0.00053311,7]
[340848899,1729923040928,-151.0,0.00053311,7]
[340848900,1729923040939,-267.711764,0.00053311,120]
[340848901,1729923040949,-151.0,0.00053311,120]
[340848902,1729923040959,-151.0,0.00053311,120]
[340848903,1729923040969,-151.0,0.00053311,120]
[340848904,1729923040979,-156.463747,0.00053311,120]
[340848905,1729923040989,-151.0,0.00053311,120]
[340848906,1729923040998,-151.0,0.00053311,120]
[340848907,1729923041007,-236.611658,0.00053311,120]
[340848908,1729923041017,-236.611658,0.00053311,120]
[340848909,1729923041027,-151.0,0.00053311,110]
[340848910,1729923041036,-151.0,0.00053311,120]
[340848911,1729923041047,-151.0,0.00053311,120]
[340848912,1729923041056,-151.0,0.00053311,120]
[340848913,1729923041065,-151.0,0.00053311,120]
[340848914,1729923041076,-158.751493,0.00053311,120]
[340848915,1729923041085,-151.0,0.00053311,120]
[340848916,1729923041095,-152.701338,0.00053311,120]
[340848917,1729923041104,-151.0,0.00053311,120]
[340848918,1729923041114,-151.0,0.00053311,120]
[340848919,1729923041123,-151.0,0.00053311,120]
[340848920,1729923041132,-151.0,0.00053311,120]
[340848921,1729923041142,-4361.16775,0.00053411,14]
[340848922,1729923041152,-644.21,0.00053619,2]
[340848923,1729923041161,-576.825742,0.000539,120]
[340848924,1729923041170,-50000.0,0.000539,30]
[340848925,1729923041179,-436.802354,0.000539,120]
[340848926,1729923041188,-436.802354,0.000539,120]
[340848927,1729923041197,-531.518783,0.000539,120]
[340848928,1729923041206,-531.518783,0.000539,120]
[340848929,1729923041216,-151.0,0.000539,120]
[340848930,1729923041226,-151.0,0.000539,120]
[340848931,1729923041237,-152.346264,0.000539,120]
[340848932,1729923041247,-151.0,0.000539,120]
[340848933,1729923041256,-155.790405,0.000539,120]
[340848934,1729923041352,-154.810506,0.000539,120]
[340848935,1729923041361,-151.0,0.000539,120]
[340848936,1729923041371,-178.752332,0.000539,120]
[340848937,1729923041380,-151.0,0.000539,120]
[340848938,1729923041389,-336.30234477,0.00054032,2]
[340848939,1729923041399,-152.0,0.0005424,4]
[340848940,1729923041408,-1199.62,0.000543,60]
[340848941,1729923041417,-1980.0,0.0005432,120]
[340848942,1729923041427,-1264.0,0.0005432,120]
[340848943,1729923041438,-151.76,0.00054453,2]
[340848944,1729923041447,-166.99,0.00054526,2]
[340848945,1729923041456,-7336.14628487,0.00054794,120]
[340848946,1729923041465,-212.84742176,0.00054794,120]
[340848947,1729923041474,-1500.0,0.00054794,120]
[340848948,1729923041485,-1500.0,0.00054794,120]
[340848949,1729923041494,-1500.0,0.00054794,120]
[340848950,1729923041510,-1500.0,0.00054794,120]
[340848951,1729923041519,-1500.0,0.00054794,120]
[340848952,1729923041528,-1500.0,0.00054794,120]
[340848953,1729923041538,-1089.57647288,0.00054794,120]
[340848954,1729923041548,-507.0,0.00054795,120]
[340848955,1729923041557,-653.0,0.00054795,120]
[340848956,1729923041566,-250.0,0.00054795,120]
[340848957,1729923041575,-250.0,0.00054795,120]
[340848958,1729923041585,-250.0,0.00054795,120]
[340848959,1729923041594,-250.0,0.00054795,120]
[340848960,1729923041603,-250.0,0.00054795,120]
[340848961,1729923041612,-250.0,0.00054795,120]
[340848962,1729923041621,-250.0,0.00054795,120]
[340848963,1729923041630,-250.0,0.00054795,120]
[340848964,1729923041639,-250.0,0.00054795,120]
[340848965,1729923041649,-250.0,0.00054795,120]
[340848966,1729923041658,-250.0,0.00054795,120]
[340848967,1729923041667,-259.863686,0.00054795,120]
[340848968,1729923041678,-151.0,0.00054795,30]
[340848969,1729923041687,-151.0,0.00054795,30]
[340848970,1729923041696,-151.301177,0.00054795,30]
[340848971,1729923041705,-3000.0,0.000548,2]
[340848972,1729923041715,-359.8803683,0.00054824,2]
[340848973,1729923041723,-2806.8697124,0.00054824,2]
[340848974,1729923041732,-194.211784,0.00054824,120]
[340848975,1729923041741,-319.215297,0.00054824,120]
[340848976,1729923041750,-319.215297,0.00054824,120]
[340848977,1729923041758,-151.0,0.00054824,120]
[340848978,1729923041767,-151.0,0.00054824,120]
[340848979,1729923041776,-159.63227,0.00054824,7]
[340848980,1729923041785,-229.11392,0.00054824,120]
[340848981,1729923041793,-229.11392,0.00054824,120]
[340848982,1729923041802,-3224.5300471,0.00054824,2]
[340848983,1729923041811,-29737.4799408,0.00054862,2]
[340848984,1729923041820,-50000.0,0.000549,30]
[340848985,1729923041828,-151.0,0.000549,120]
[340848986,1729923041838,-151.0,0.000549,120]
[340848987,1729923041847,-152.305346,0.000549,120]
[340848988,1729923041857,-151.0,0.000549,120]
[340848989,1729923041868,-151.0,0.000549,120]
[340848990,1729923041878,-151.0,0.000549,120]
[340848991,1729923041889,-151.0,0.000549,120]
[340848992,1729923041899,-151.0,0.000549,120]
[340848993,1729923041911,-161.688924,0.000549,120]
[340848994,1729923041921,-151.0,0.000549,120]
[340848995,1729923041932,-151.0,0.000549,120]
[340848996,1729923041943,-151.0,0.000549,120]
[340848997,1729923041952,-1021.37833172,0.00055,14]
[340848998,1729923041961,-341.25629422,0.00055,120]
[340848999,1729923041970,-100000.0,0.00055,40]
[340849000,1729923041979,-2813.35,0.00055,120]
[340849001,1729923041988,-1282.0,0.00055,120]
[340849002,1729923041997,-884.94,0.0005548,2]
[340849003,1729923042007,-158.25,0.00055684,2]
[340849004,1729923042016,-158.25,0.00055701,2]
[340849005,1729923042025,-158.25,0.00055718,2]
[340849006,1729923042034,-450.0,0.00055721,120]
[340849007,1729923042044,-187.121,0.00055721,120]
[340849008,1729923042053,-158.25,0.00055736,2]
[340849009,1729923042062,-158.25,0.00055753,2]
[340849010,1729923042071,-158.25,0.00055771,2]
[340849011,1729923042080,-158.25,0.00055788,2]
[340849012,1729923042090,-158.25,0.00055805,2]
[340849013,1729923042099,-158.25,0.00055823,2]
[340849014,1729923042107,-158.25,0.0005584,2]
[340849015,1729923042116,-158.25,0.00055858,2]
[340849016,1729923042126,-158.25,0.00055875,2]
[340849017,1729923042135,-158.25,0.00055892,2]
[340849018,1729923042144,-158.25,0.0005591,2]
[340849019,1729923042153,-158.25,0.00055927,2]
[340849020,1729923042163,-158.25,0.00055945,2]
[340849021,1729923042172,-644.21,0.0005595,2]
[340849022,1729923042181,-158.25,0.00055962,2]
[340849023,1729923042190,-1199.62,0.00056,60]
[340849024,1729923042200,-176.18,0.00056172,2]
[340849025,1729923042209,-151.76,0.00056352,120]
[340849026,1729923042218,-167.02,0.00056487,2]
[340849027,1729923042227,-166.99,0.00056605,2]
[340849028,1729923042237,-151.35,0.00056795,120]
[340849029,1729923042246,-3326.14201239,0.00057,120]
[340849030,1729923042255,-2508.63584924,0.00057,120]
[340849031,1729923042264,-54014.39790564,0.00057,60]
[340849032,1729923042412,-151.33038352,0.000538,30]
[340849033,1729923042422,-3889.52266729,0.00057,60]
[340849034,1729923042433,-15924.13365286,0.00057,60]
[340849035,1729923042513,-989.13,0.0004318,14]
[340849036,1729923042528,-1451.0177872,0.0004318,14]
[340849037,1729923042540,-952.09603091,0.0004318,14]
[340849066,1729923046208,-256.50000096,0.0004318,14]
[340849067,1729923122446,249.0,0.00019725,2]
[340849068,1729923187966,1486.53544735,0.00043298,120]
[340849088,1729923908958,6705.94,0.00014,2]
[340849089,1729923908986,122233.07625201,0.00014,2]
[340849090,1729923909021,188575.94855413,0.00014,2]
[340849091,1729924043513,5072.85534766,0.0001305,2]
[340849092,1729924075859,3209.9418795,0.00012579,2]
[340849093,1729924075887,4201.11363556,0.00013,2]
[340849094,1729924079772,10938.26824488,0.0001,2]
[340849099,1729924158366,-2565.510542,0.0001439,2]
[340849100,1729924199621,-6112.31069682,0.0001439,2]
[340849101,1729924211556,-5833.21677459,0.000145,2]
[340849108,1729924232074,-150.0,0.00014521,2]
[340849109,1729924232084,-1009.32996057,0.00014999,2]
[340849110,1729924232094,-300.0,0.00014999,2]
[340849111,1729924232103,-651.5636435,0.00015,2]
[340849112,1729924232156,-3301.82961264,0.00015,2]
[340849113,1729924232170,-5878.67181557,0.00015,2]
[340849114,1729924232182,-579.46346634,0.00015,2]
[340849115,1729924232194,-737.5985368,0.00015,2]
[340849116,1729924232207,-554.04576987,0.00015,2]
[340849117,1729924232250,-32158.45870005,0.00015,2]
[340849118,1729924232259,-6874.0,0.00015,2]
[340849119,1729924232268,-164.83,0.00015342,2]
[340849120,1729924232278,-2054.80614685,0.000159,2]
[340849121,1729924232288,-300.0,0.00016416,2]
[340849122,1729924232298,-25418.6784251,0.0002,2]
[340849123,1729924232310,-1642.848539,0.0002,2]
[340849124,1729924232331,-479.16,0.0002,2]
[340849125,1729924232346,-18257.17675615,0.0002,2]
[340849126,1729924232357,-3925.50635877,0.000232,2]
[340849127,1729924232366,-5201.57833073,0.00023922,2]
[340849128,1729924232375,-1090.292,0.00030037,2]
[340849129,1729924232387,-200.0,0.00036617,2]
[340849130,1729924232396,-2479.04,0.00036907,2]
[340849131,1729924232406,-23900.0,0.00037259,2]
[340849132,1729924232415,-170.48,0.00037384,2]
[340849133,1729924232424,-1090.292,0.00038158,2]
[340849134,1729924232434,-151.76,0.00041096,2]
[340849135,1729924232443,-239.0,0.000414,2]
[340849136,1729924232454,-166.58,0.00041429,2]
[340849137,1729924232464,-3127.90263831,0.00042,30]
[340849138,1729924232474,-917.4451,0.0004297,2]
[340849139,1729924232484,-495.7141,0.00043199,2]
[340849140,1729924232493,-258.41734688,0.00043199,2]
[340849141,1729924232502,-402.10734641,0.00043199,2]
[340849142,1729924232511,-336.30234477,0.00043199,2]
[340849143,1729924232520,-362.2969032,0.00043199,2]
[340849144,1729924232530,-4310.86796954,0.00043199,2]
[340849145,1729924232539,-500.0,0.00043273,2]
[340849146,1729924232548,-1481.69,0.00043298,30]
[340849147,1729924232557,-60799.86039089,0.00043299,2]
[340849148,1729924238244,-46461.10646673,0.00043299,2]
[340849149,1729924238254,-1210.0,0.00043299,2]
[340849150,1729924238263,-3668.76658859,0.00043299,2]
[340849151,1729924238271,-342.32621201,0.00043299,2]
[340849152,1729924238281,-2954.68423397,0.00043299,2]
[340849153,1729924238291,-4987.07769625,0.00043299,10]
[340849154,1729924238302,-1494.6561693,0.00043299,2]
[340849155,1729924238311,-7252.72950656,0.00043299,2]
[340849156,1729924238321,-1011.88540921,0.00043299,2]
[340849157,1729924238332,-5095.95430199,0.00043299,2]
[340849158,1729924238341,-2686.23107042,0.00043299,2]
[340849159,1729924238352,-2412.85345383,0.00043299,2]
[340849160,1729924238362,-2632.43791508,0.00043299,2]
[340849161,1729924238372,-135098.49322437,0.00043299,2]
[340849162,1729924238381,-3191.96736867,0.00043299,2]
[340849163,1729924238390,-1458.08640039,0.00043299,2]
[340849164,1729924238400,-22425.19149482,0.00043299,2]
[340849165,1729924238409,-7589.19668608,0.00043299,2]
[340849166,1729924238418,-1050.52546414,0.00043299,2]
[340849167,1729924238428,-5870.03380986,0.00043299,2]
[340849168,1729924238438,-855.20756452,0.00043299,2]
[340849169,1729924238447,-187.67126577,0.00043299,2]
[340849170,1729924238456,-1289.29455197,0.00043299,2]
[340849171,1729924238465,-4859.22360434,0.00043299,2]
[340849172,1729924238474,-291.83910728,0.00043299,2]
[340849173,1729924238483,-3951.32033486,0.00043299,2]
[340849174,1729924238493,-22383.66764914,0.00043299,2]
[340849175,1729924238502,-12621.33460282,0.00043299,2]
[340849176,1729924238511,-1889.17280268,0.00043299,2]
[340849177,1729924238520,-180.97684333,0.00043299,2]
[340849178,1729924238530,-5491.407826,0.00043299,2]
[340849179,1729924238539,-643.0,0.00043299,2]
[340849180,1729924238548,-954.22443161,0.00043299,2]
[340849181,1729924238557,-9436.51647994,0.00043299,2]
[340849182,1729924238567,-5040.97210309,0.00043299,4]
[340849183,1729924238576,-352.47753497,0.00043299,2]
[340849184,1729924238585,-297959.89157869,0.00043299,2]
[340849195,1729924240290,-80874.557107,0.00043299,2]
[340849196,1729924240305,-2270.0,0.00043299,2]
[340849197,1729924240316,-400.07483383,0.00043299,2]
[340849198,1729924240327,-428.79321821,0.00043299,2]
[340849199,1729924240339,-3281.23194796,0.00043299,2]
[340849200,1729924240350,-1136.399993,0.00043299,2]
[340849201,1729924240361,-528.55,0.00043299,2]
[340849202,1729924240373,-4700.0,0.00043299,2]
[340849203,1729924240384,-931.63119276,0.00043299,2]
[340849204,1729924240395,-3056.31136491,0.00043299,2]
[340849205,1729924243750,-5161.16,0.00043299,2]
[340849206,1729924243763,-3004.950001,0.00043299,2]
[340849207,1729924243774,-10595.63546658,0.00043299,2]
[340849208,1729924243842,-3062.1744444,0.00043299,2]
[340849209,1729924243856,-1786.27921023,0.00043299,2]
[340849210,1729924243880,-251.71125,0.00043299,2]
[340849211,1729924243891,-2035.92778442,0.00043299,2]
[340849212,1729924243958,-7507.07901074,0.00043299,2]
[340849216,1729924246286,-7125.0,0.00043299,2]
[340849217,1729924246330,-1006.77357004,0.00043299,2]
[340849218,1729924246452,-1698.55309676,0.00043299,2]
[340849220,1729924500328,293.05065542,0.00043329,120]
[340849221,1729924580181,172.85003638,0.00024,60]
[340849222,1729924683898,9990.264651,0.00043329,30]
[340849225,1729925191627,4987.07769724,0.00043327,120]
[340849226,1729925209224,-150.0,0.00017417,2]
[340849227,1729925209245,-55.30217707,0.00032877,2]
[340849241,1729925432369,-150.0,0.00017429,2]
[340849242,1729925432378,-152.3376889,0.00032877,2]
[340849243,1729925432388,-241.22,0.00033255,2]
[340849244,1729925432396,-936.93,0.00039642,2]
[340849245,1729925432405,-685.264611,0.000398,2]
[340849246,1729925432414,-1215.71229154,0.0004,50]
[340849247,1729925432548,-4757.34839482,0.0004,50]
[340849248,1729925432559,-412.95315396,0.0004,50]
[340849249,1729925432569,-3613.98615968,0.0004,50]
[340849250,1729925432579,-3309.88869271,0.000411,2]
[340849251,1729925432587,-151.64,0.00041334,2]
[340849252,1729925432597,-161.05,0.00041536,2]
[340849253,1729925432606,-172.61,0.00041697,2]
[340849254,1729925432615,-250.0,0.00041705,120]
[340849255,1729925432624,-250.0,0.00041722,2]
[340849256,1729925432634,-161.34,0.00041755,2]
[340849257,1729925432642,-23900.0,0.00041765,2]
[340849258,1729925432651,-155.34,0.00041819,120]
[340849259,1729925432660,-760.82,0.0004188,2]
[340849260,1729925432670,-936.93,0.00041906,2]
[340849261,1729925432679,-395.26,0.0004196,2]
[340849262,1729925432688,-320.0,0.00042192,2]
[340849263,1729925432698,-289.88,0.00042192,2]
[340849264,1729925432707,-166.58,0.0004223,2]
[340849265,1729925432716,-284.918,0.000424,2]
[340849266,1729925432725,-10000.0,0.000425,60]
[340849267,1729925432734,-1067.178,0.00042536,64]
[340849268,1729925432743,-200.0,0.000426,15]
[340849269,1729925432752,-500.0,0.000427,15]
[340849270,1729925432761,-167.0,0.00042771,2]
[340849271,1729925432770,-700.0,0.000428,15]
[340849272,1729925432779,-653.95,0.00042899,7]
[340849273,1729925432787,-1000.0,0.000429,15]
[340849274,1729925432796,-865.2825,0.0004317,2]
[340849275,1729925432805,-2096.2278,0.0004317,2]
[340849276,1729925432814,-8008.1,0.0004317,2]
[340849277,1729925432823,-214.75966473,0.0004318,15]
[340849278,1729925432831,-445.7348,0.0004318,2]
[340849279,1729925432840,-189.52961302,0.0004318,28]
[340849280,1729925432849,-1492.8546,0.00043199,2]
[340849281,1729925432858,-906.75805996,0.000432,60]
[340849282,1729925432867,-172.27823124,0.00043226,2]
[340849283,1729925432875,-180.72998738,0.00043226,2]
[340849284,1729925432884,-386.0799941,0.00043226,2]
[340849285,1729925432893,-513.25394619,0.00043226,2]
[340849286,1729925432902,-215.55158588,0.00043226,2]
[340849287,1729925432911,-2128.6915,0.00043226,120]
[340849288,1729925432919,-16366.16410011,0.0004327,9]
[340849289,1729925438405,-1000.0,0.00042505,2]
[340849290,1729925438415,-117430.29401089,0.0004327,9]
[340849291,1729925438424,-73272.8852125,0.0004327,9]
[340849292,1729925438434,-161.55138057,0.0004327,2]
[340849293,1729925438443,-223.17550877,0.00043279,31]
[340849294,1729925438452,-18260.22483932,0.00043279,2]
[340849295,1729925438462,-153.50568892,0.00043279,31]
[340849296,1729925438472,-718452.78665935,0.0004328,2]
[340849381,1729925440491,-328.90957549,0.0004318,2]
[340849382,1729925440500,-181662.37340912,0.0004328,2]
[340849383,1729925440509,-161.68230781,0.0004328,30]
[340849384,1729925440518,-454.73977873,0.00043288,120]
[340849385,1729925440527,-500.0,0.00043298,2]
[340849386,1729925440536,-1926.25,0.000433,30]
[340849387,1729925440545,-161.55138057,0.00043316,2]
[340849388,1729925440554,-161.55138057,0.00043316,2]
[340849389,1729925440563,-151.0,0.00043326,14]
[340849390,1729925440572,-152.232502,0.00043326,14]
[340849391,1729925440581,-356.991883,0.00043326,14]
[340849392,1729925440590,-151.0,0.00043326,14]
[340849393,1729925440599,-183.291136,0.00043326,14]
[340849394,1729925440608,-356.991883,0.00043326,14]
[340849395,1729925440617,-183.291136,0.00043326,14]
[340849397,1729925440626,-5000.0,0.00043326,14]
[340849399,1729925440634,-5000.0,0.00043326,14]
[340849401,1729925440644,-5000.0,0.00043326,14]
[340849403,1729925440654,-5000.0,0.00043326,14]
[340849405,1729925440664,-5000.0,0.00043326,14]
[340849407,1729925440673,-5000.0,0.00043326,14]
[340849409,1729925440682,-5000.0,0.00043326,14]
[340849411,1729925440690,-5000.0,0.00043326,14]
[340849413,1729925440699,-5000.0,0.00043326,14]
[340849415,1729925440708,-5000.0,0.00043326,14]
[340849416,1729925440718,-5000.0,0.00043326,14]
[340849418,1729925440727,-5000.0,0.00043326,14]
[340849420,1729925440737,-5000.0,0.00043326,14]
[340849422,1729925440746,-5000.0,0.00043326,14]
[340849424,1729925440755,-5000.0,0.00043326,14]
[340849426,1729925440764,-5000.0,0.00043326,14]
[340849428,1729925440773,-5000.0,0.00043326,14]
[340849430,1729925440782,-5000.0,0.00043326,14]
[340849432,1729925440791,-5000.0,0.00043326,14]
[340849433,1729925440800,-5000.0,0.00043326,14]
[340849434,1729925440808,-5000.0,0.00043326,14]
[340849435,1729925440817,-5000.0,0.00043326,14]
[340849436,1729925440826,-5000.0,0.00043326,14]
[340849437,1729925440836,-5000.0,0.00043326,14]
[340849438,1729925440845,-5000.0,0.00043326,14]
[340849439,1729925440854,-5000.0,0.00043326,14]
[340849440,1729925440862,-5000.0,0.00043326,14]
[340849441,1729925440872,-5000.0,0.00043326,14]
[340849442,1729925440881,-5000.0,0.00043326,14]
[340849443,1729925440890,-5000.0,0.00043326,14]
[340849444,1729925440899,-5000.0,0.00043326,14]
[340849445,1729925440908,-5000.0,0.00043326,14]
[340849446,1729925440917,-5000.0,0.00043326,14]
[340849447,1729925440930,-5000.0,0.00043326,14]
[340849448,1729925440939,-5000.0,0.00043326,14]
[340849449,1729925440948,-5000.0,0.00043326,14]
[340849450,1729925440957,-5000.0,0.00043326,14]
[340849451,1729925440966,-5000.0,0.00043326,14]
[340849452,1729925440976,-5000.0,0.00043326,14]
[340849453,1729925441084,-5000.0,0.00043326,14]
[340849454,1729925441094,-2207.280639,0.00043326,14]
[340849455,1729925441103,-260992.58065596,0.00043326,2]
[340849456,1729925441114,-371.48,0.00043326,2]
[340849457,1729925441125,-672.22464968,0.00043326,2]
[340849465,1729925446235,-813.59906,0.000433,41]
[340849466,1729925446244,-4087.77921134,0.00043326,2]
[340849467,1729925446336,-1718.84563765,0.00043326,2]
[340849468,1729925446348,-7368.6299918,0.00043326,2]
[340849469,1729925446361,-1552.725,0.00043326,2]
[340849470,1729925446435,-336.025884,0.00043326,2]
[340849471,1729925446618,-6730.25962879,0.00043326,2]
[340849473,1729925446629,-1406.87394596,0.00043326,2]
[340849497,1729925664525,280.18395947,0.00014,2]
[340849550,1729926137082,-274.75894511,0.00015342,2]
[340849551,1729926137105,-177.33,0.00015342,2]
[340849567,1729926233379,1045.0,0.000173,2]
[340849593,1729926561862,-506.78,0.00041333,7]
[340849594,1729926561887,-4662.06,0.00041362,120]
[340849595,1729926561915,-250.0,0.00041466,120]
[340849596,1729926561945,-203.05,0.00041592,120]
[340849597,1729926561973,-2077.0,0.00041619,30]
[340849598,1729926562002,-155.34,0.00041622,120]
[340849605,1729926631440,-157.974,0.0003,2]
[340849606,1729926631450,-967.66,0.00039394,2]
[340849607,1729926631460,-215.0,0.00041,2]
[340849608,1729926631469,-151.64,0.00041171,2]
[340849609,1729926631479,-150.0,0.00041302,2]
[340849610,1729926631489,-1741.82,0.00041315,2]